{"text_format":"3","workbook":"xlsx","n_sheets":7,"sheets":["Segunda","Terça","Quarta","Quinta","Sexta","Sábado","Domingo"],"not_rendered":{"defined_names":24},"read":"whole","date_system":"1900"}

{"sheet":"Segunda","index":0,"n_rows":10,"n_cols":13,"rows_kept":10,"merged":[[1,1,2,1],[1,2,1,10],[1,11,1,12],[2,2,2,10],[2,11,2,12]]}
[null,"AGENDA DE TURNOS"]
[null,"SEGUNDA","Para a semana de: ",{"$nulls":8},"DATA"]
[null,null,"Nome do Departamento: ",{"$nulls":8},"DEPARTAMENTO"]
[null,"Nome do funcionário","7h","8h","9h","10h","11h","12h","13h","14h","15h","Licença médica?","TOTAL"]
[null,"Brenda F","gerente","gerente","gerente","gerente","gerente","gerente","gerente","gerente","gerente",null,{"$f":"IFERROR(COUNTIF(Segunda[[#This Row],[7h]:[15h]],\"*\"),\"\")","v":9}]
[null,"Alberto R",null,"caixa","caixa","caixa","caixa",{"$nulls":5},{"$f":"IFERROR(COUNTIF(Segunda[[#This Row],[7h]:[15h]],\"*\"),\"\")","v":4}]
[null,"Eduardo G",null,"recepção","recepção","recepção","recepção ","recepção","recepção","recepção",null,null,{"$f":"IFERROR(COUNTIF(Segunda[[#This Row],[7h]:[15h]],\"*\"),\"\")","v":7}]
[null,"Mateus R",null,"recepção","recepção","recepção","recepção ","recepção","recepção","recepção",null,null,{"$f":"IFERROR(COUNTIF(Segunda[[#This Row],[7h]:[15h]],\"*\"),\"\")","v":7}]
[null,"Davi B",{"$nulls":10},{"$f":"IFERROR(COUNTIF(Segunda[[#This Row],[7h]:[15h]],\"*\"),\"\")","v":0}]
[null,"Lara C",{"$nulls":5},"caixa","caixa","caixa","caixa",null,{"$f":"IFERROR(COUNTIF(Segunda[[#This Row],[7h]:[15h]],\"*\"),\"\")","v":4}]

{"sheet":"Terça","index":1,"n_rows":10,"n_cols":13,"rows_kept":10,"merged":[[1,1,2,1],[1,2,1,10],[1,11,1,12],[2,2,2,10],[2,11,2,12]]}
[null,{"$f":"Título_de_AGENDA_DE_TURNOS","v":"AGENDA DE TURNOS"}]
[null,"TERÇA","Para a Semana ou: ",{"$nulls":8},{"$f":"DATA","v":"DATA"}]
[null,null,"Nome do Departamento: ",{"$nulls":8},{"$f":"DEPARTAMENTO","v":"DEPARTAMENTO"}]
[null,"Nome do Funcionário","7h","8h","9h","10h","11h","12h","13h","14h","15h","Licença médica?","TOTAL"]
[null,"Brenda F","gerente","gerente","gerente","gerente","gerente","gerente","gerente","gerente","gerente",null,{"$f":"IFERROR(COUNTIF(Terça[[#This Row],[7h]:[15h]],\"*\"),\"\")","v":9}]
[null,"Alberto R",null,"caixa","caixa","caixa","caixa",{"$nulls":5},{"$f":"IFERROR(COUNTIF(Terça[[#This Row],[7h]:[15h]],\"*\"),\"\")","v":4}]
[null,"Eduardo G",null,"recepção","recepção","recepção","recepção ","recepção","recepção","recepção",null,null,{"$f":"IFERROR(COUNTIF(Terça[[#This Row],[7h]:[15h]],\"*\"),\"\")","v":7}]
[null,"Mateus R",null,"recepção","recepção","recepção","recepção ","recepção","recepção","recepção",null,null,{"$f":"IFERROR(COUNTIF(Terça[[#This Row],[7h]:[15h]],\"*\"),\"\")","v":7}]
[null,"Davi B",{"$nulls":9},"Licença médica",{"$f":"IFERROR(COUNTIF(Terça[[#This Row],[7h]:[15h]],\"*\"),\"\")","v":0}]
[null,"Lara C",{"$nulls":5},"caixa","caixa","caixa","caixa",null,{"$f":"IFERROR(COUNTIF(Terça[[#This Row],[7h]:[15h]],\"*\"),\"\")","v":4}]

{"sheet":"Quarta","index":2,"n_rows":10,"n_cols":13,"rows_kept":10,"merged":[[1,1,2,1],[1,2,1,10],[1,11,1,12],[2,2,2,10],[2,11,2,12]]}
[null,{"$f":"Título_de_AGENDA_DE_TURNOS","v":"AGENDA DE TURNOS"}]
[null,"QUARTA","Para a Semana ou: ",{"$nulls":8},{"$f":"DATA","v":"DATA"}]
[null,null,"Nome do Departamento: ",{"$nulls":8},{"$f":"DEPARTAMENTO","v":"DEPARTAMENTO"}]
[null,"Nome do Funcionário","7h","8h","9h","10h","11h","12h","13h","14h","15h","Licença médica?","TOTAL"]
[null,"Brenda F","gerente","gerente","gerente","gerente","gerente","gerente","gerente","gerente","gerente",null,{"$f":"IFERROR(COUNTIF(Quarta[[#This Row],[7h]:[15h]],\"*\"),\"\")","v":9}]
[null,"Alberto R",null,"caixa","caixa","caixa","caixa",{"$nulls":5},{"$f":"IFERROR(COUNTIF(Quarta[[#This Row],[7h]:[15h]],\"*\"),\"\")","v":4}]
[null,"Eduardo G",null,"recepção","recepção","recepção","recepção ","recepção","recepção","recepção",null,null,{"$f":"IFERROR(COUNTIF(Quarta[[#This Row],[7h]:[15h]],\"*\"),\"\")","v":7}]
[null,"Mateus R",null,"recepção","recepção","recepção","recepção ","recepção","recepção","recepção",null,null,{"$f":"IFERROR(COUNTIF(Quarta[[#This Row],[7h]:[15h]],\"*\"),\"\")","v":7}]
[null,"Davi B",{"$nulls":9},"Licença médica",{"$f":"IFERROR(COUNTIF(Quarta[[#This Row],[7h]:[15h]],\"*\"),\"\")","v":0}]
[null,"Lara C",{"$nulls":5},"caixa","caixa","caixa","caixa",null,{"$f":"IFERROR(COUNTIF(Quarta[[#This Row],[7h]:[15h]],\"*\"),\"\")","v":4}]

{"sheet":"Quinta","index":3,"n_rows":10,"n_cols":13,"rows_kept":10,"merged":[[1,1,2,1],[1,2,1,10],[1,11,1,12],[2,2,2,10],[2,11,2,12]]}
[null,{"$f":"Título_de_AGENDA_DE_TURNOS","v":"AGENDA DE TURNOS"}]
[null,"QUINTA","Para a Semana ou: ",{"$nulls":8},{"$f":"DATA","v":"DATA"}]
[null,null,"Nome do Departamento: ",{"$nulls":8},{"$f":"DEPARTAMENTO","v":"DEPARTAMENTO"}]
[null,"Nome do Funcionário","7h","8h","9h","10h","11h","12h","13h","14h","15h","Licença médica?","TOTAL"]
[null,"Brenda F","gerente","gerente","gerente","gerente","gerente","gerente","gerente","gerente","gerente",null,{"$f":"IFERROR(COUNTIF(Quinta[[#This Row],[7h]:[15h]],\"*\"),\"\")","v":9}]
[null,"Alberto R",null,"caixa","caixa","caixa","caixa",{"$nulls":5},{"$f":"IFERROR(COUNTIF(Quinta[[#This Row],[7h]:[15h]],\"*\"),\"\")","v":4}]
[null,"Eduardo G",null,"recepção","recepção","recepção","recepção ","recepção","recepção","recepção",null,null,{"$f":"IFERROR(COUNTIF(Quinta[[#This Row],[7h]:[15h]],\"*\"),\"\")","v":7}]
[null,"Mateus R",null,"recepção","recepção","recepção","recepção ","recepção","recepção","recepção",null,null,{"$f":"IFERROR(COUNTIF(Quinta[[#This Row],[7h]:[15h]],\"*\"),\"\")","v":7}]
[null,"Davi B",{"$nulls":9},"Licença médica",{"$f":"IFERROR(COUNTIF(Quinta[[#This Row],[7h]:[15h]],\"*\"),\"\")","v":0}]
[null,"Lara C",{"$nulls":5},"caixa","caixa","caixa","caixa",null,{"$f":"IFERROR(COUNTIF(Quinta[[#This Row],[7h]:[15h]],\"*\"),\"\")","v":4}]

{"sheet":"Sexta","index":4,"n_rows":10,"n_cols":13,"rows_kept":10,"merged":[[1,1,2,1],[1,2,1,10],[1,11,1,12],[2,2,2,10],[2,11,2,12]]}
[null,{"$f":"Título_de_AGENDA_DE_TURNOS","v":"AGENDA DE TURNOS"}]
[null,"SEXTA","Para a Semana ou: ",{"$nulls":8},{"$f":"DATA","v":"DATA"}]
[null,null,"Nome do Departamento: ",{"$nulls":8},{"$f":"DEPARTAMENTO","v":"DEPARTAMENTO"}]
[null,"Nome do Funcionário","7h","8h","9h","10h","11h","12h","13h","14h","15h","Licença médica?","TOTAL"]
[null,"Brenda F","gerente","gerente","gerente","gerente","gerente","gerente","gerente","gerente","gerente",null,{"$f":"IFERROR(COUNTIF(Sexta[[#This Row],[7h]:[15h]],\"*\"),\"\")","v":9}]
[null,"Alberto R",null,"caixa","caixa","caixa","caixa",{"$nulls":5},{"$f":"IFERROR(COUNTIF(Sexta[[#This Row],[7h]:[15h]],\"*\"),\"\")","v":4}]
[null,"Eduardo G",null,"recepção","recepção","recepção","recepção ","recepção","recepção","recepção",null,null,{"$f":"IFERROR(COUNTIF(Sexta[[#This Row],[7h]:[15h]],\"*\"),\"\")","v":7}]
[null,"Mateus R",null,"recepção","recepção","recepção","recepção ","recepção","recepção","recepção",null,null,{"$f":"IFERROR(COUNTIF(Sexta[[#This Row],[7h]:[15h]],\"*\"),\"\")","v":7}]
[null,"Davi B",{"$nulls":9},"Licença médica",{"$f":"IFERROR(COUNTIF(Sexta[[#This Row],[7h]:[15h]],\"*\"),\"\")","v":0}]
[null,"Lara C",{"$nulls":5},"caixa","caixa","caixa","caixa",null,{"$f":"IFERROR(COUNTIF(Sexta[[#This Row],[7h]:[15h]],\"*\"),\"\")","v":4}]

{"sheet":"Sábado","index":5,"n_rows":10,"n_cols":13,"rows_kept":10,"merged":[[1,1,2,1],[1,2,1,10],[1,11,1,12],[2,2,2,10],[2,11,2,12]]}
[null,{"$f":"Título_de_AGENDA_DE_TURNOS","v":"AGENDA DE TURNOS"}]
[null,"SÁBADO","Para a Semana ou: ",{"$nulls":8},{"$f":"DATA","v":"DATA"}]
[null,null,"Nome do Departamento: ",{"$nulls":8},{"$f":"DEPARTAMENTO","v":"DEPARTAMENTO"}]
[null,"Nome do Funcionário","7h","8h","9h","10h","11h","12h","13h","14h","15h","Licença médica?","TOTAL"]
[null,"Brenda F","gerente","gerente","gerente","gerente","gerente","gerente","gerente","gerente","gerente",null,{"$f":"IFERROR(COUNTIF(Sábado[[#This Row],[7h]:[15h]],\"*\"),\"\")","v":9}]
[null,"Alberto R",null,"caixa","caixa","caixa","caixa",{"$nulls":5},{"$f":"IFERROR(COUNTIF(Sábado[[#This Row],[7h]:[15h]],\"*\"),\"\")","v":4}]
[null,"Eduardo G",null,"recepção","recepção","recepção","recepção ","recepção","recepção","recepção",null,null,{"$f":"IFERROR(COUNTIF(Sábado[[#This Row],[7h]:[15h]],\"*\"),\"\")","v":7}]
[null,"Mateus R",null,"recepção","recepção","recepção","recepção ","recepção","recepção","recepção",null,null,{"$f":"IFERROR(COUNTIF(Sábado[[#This Row],[7h]:[15h]],\"*\"),\"\")","v":7}]
[null,"Davi B",{"$nulls":9},"Licença médica",{"$f":"IFERROR(COUNTIF(Sábado[[#This Row],[7h]:[15h]],\"*\"),\"\")","v":0}]
[null,"Lara C",{"$nulls":5},"caixa","caixa","caixa","caixa",null,{"$f":"IFERROR(COUNTIF(Sábado[[#This Row],[7h]:[15h]],\"*\"),\"\")","v":4}]

{"sheet":"Domingo","index":6,"n_rows":10,"n_cols":13,"rows_kept":10,"merged":[[1,1,2,1],[1,2,1,10],[1,11,1,12],[2,2,2,10],[2,11,2,12]]}
[null,{"$f":"Título_de_AGENDA_DE_TURNOS","v":"AGENDA DE TURNOS"}]
[null,"DOMINGO","Para a Semana ou: ",{"$nulls":8},{"$f":"DATA","v":"DATA"}]
[null,null,"Nome do Departamento: ",{"$nulls":8},{"$f":"DEPARTAMENTO","v":"DEPARTAMENTO"}]
[null,"Nome do Funcionário","7h","8h","9h","10h","11h","12h","13h","14h","15h","Licença médica?","TOTAL"]
[null,"Brenda F","gerente","gerente","gerente","gerente","gerente","gerente","gerente","gerente","gerente",null,{"$f":"IFERROR(COUNTIF(Domingo[[#This Row],[7h]:[15h]],\"*\"),\"\")","v":9}]
[null,"Alberto R",null,"caixa","caixa","caixa","caixa",{"$nulls":5},{"$f":"IFERROR(COUNTIF(Domingo[[#This Row],[7h]:[15h]],\"*\"),\"\")","v":4}]
[null,"Eduardo G",null,"recepção","recepção","recepção","recepção ","recepção","recepção","recepção",null,null,{"$f":"IFERROR(COUNTIF(Domingo[[#This Row],[7h]:[15h]],\"*\"),\"\")","v":7}]
[null,"Mateus R",null,"recepção","recepção","recepção","recepção ","recepção","recepção","recepção",null,null,{"$f":"IFERROR(COUNTIF(Domingo[[#This Row],[7h]:[15h]],\"*\"),\"\")","v":7}]
[null,"Davi B",{"$nulls":9},"Licença médica",{"$f":"IFERROR(COUNTIF(Domingo[[#This Row],[7h]:[15h]],\"*\"),\"\")","v":0}]
[null,"Lara C",{"$nulls":5},"caixa","caixa","caixa","caixa",null,{"$f":"IFERROR(COUNTIF(Domingo[[#This Row],[7h]:[15h]],\"*\"),\"\")","v":4}]